Cogmind - Beta 12 @@@ ROGUE MODE // 2023.04.25 @ 20:05:35 Player: Decinym Result: Self-destructed Performance ------------- Evolutions (5) 2500 Regions Visited (25) 5000 Robots Destroyed (364) 1820 Value Destroyed (14317) 14317 Prototype IDs (251) 5020 Alien Tech Used (0) 0 Bonus (7513) 7513 TOTAL SCORE: 36170 Bonus ------- High Alert Combat Kills 2597 Follower Combat Kills 2479 Entered Garrisons 200 Network Hubs Disabled 200 Aligned with FarCom 300 Met Data Miner 300 Used Data Conduit 3000 Met Imprinter 300 Was Imprinted 300 Met Zhirov 300 Met R17 at Cetus 500 Read Decrypted Archives 300 Friendly Fire -3263 Cogmind --------- Core Integrity 367/1000 Matter 42/300 Energy 200/200 System Corruption 28% Temperature Cool (0) Movement Treading (160) Location -5/Hub_04(d) Parts ------- > --- POWER (2) -------- Cold Fusion Reactor > --- PROPULSION (7) --- Centrium Heavy Treads Centrium Heavy Treads Centrium Heavy Treads > --- UTILITY (6) ------ Large Storage Unit Advanced Signal Interpreter Experimental Core Analyzer > --- WEAPON (2) ------- (None) > --- INVENTORY (15) --- Biomechanical Wings Biomechanical Wings Biomechanical Wings Biomechanical Wings Advanced Energy Well (500) Zionite Biocell (600) Experimental ECM Suite Centrium Medium Armor Plating Authchip [Propulsion] 01-MTF's Autohacker Advanced System Restoration Module 01-MTF's Shockpuncher Advanced KE Penetrator Improved Plasma Cutter Peak State ------------ > --- POWER ------------ Light Deuterium Engine Quantum Reactor > --- PROPULSION ------- Centrium Heavy Treads Centrium Heavy Treads Centrium Heavy Treads Zionite Composite Leg I > --- UTILITY ---------- Large Storage Unit Advanced Signal Interpreter Experimental Core Analyzer Centrium Medium Armor Plating Centrium Medium Armor Plating Centrium Medium Armor Plating > --- WEAPON ----------- Advanced KE Penetrator Advanced KE Penetrator > --- INVENTORY -------- Biomechanical Wings Biomechanical Wings Biomechanical Wings Biomechanical Wings Advanced Energy Well Zionite Biocell Experimental ECM Suite Authchip [Propulsion] 01-MTF's Autohacker 01-MTF's Shockpuncher Scatter Rocket Array Improved Plasma Cutter CR-A16's Behemoth Slayer [Rating: 139] Favorites ----------- Power Neutrino Core Engine Improved Ion Engine Power Core Neutrino Core Reactor Cold Fusion Reactor Propulsion Light Treads Treads Light Treads Leg Enhanced Flexi-carbon Leg Wheel Armored Wheel Flight Unit Biomechanical Wings Utility Cargo Storage Unit Device Experimental Heat Sink Storage Cargo Storage Unit Processor Advanced Terrain Scan Processor Hackware Hacking Suite Protection Improved Medium Armor Plating Weapon Long-range Phase Cannon Energy Gun Heavy Particle Gun Energy Cannon Long-range Phase Cannon Ballistic Gun Improved Heavy Machine Gun Ballistic Cannon Flak Cannon Launcher Rocket Launcher Special Weapon RU-N14's Throwing Claymores Impact Weapon Makeshift Hammer Piercing Weapon CR-A16's Pointy Stick Build | -11 -10 -10 -9 -9 -9 -8 -8 -8 -8 -8 -7 -7 -7 -7 -6 -6 -6 -6 -6 -5 -5 -5 -5 -5 -5 ------- Run | Jun Mat Min Mat Min Exi Min Mat Gar Mat Sto Fac Low Low Zio Pro Fac Low Low Dat Pro Fac Ext Cet Arc Hub Slots Evolved 10 | . . . 2 . . . 2 . . . 2 . . . . 2 . . . . 2 . . . . Power 1 | . . . . . . . . . . . . . . . . . . . . . 1 . . . . Propulsion 5 | . . . 1 . . . 1 . . . . . . . . 2 . . . . 1 . . . . Utility 4 | . . . 1 . . . 1 . . . 2 . . . . . . . . . . . . . . Weapon . | . . . . . . . . . . . . . . . . . . . . . . . . . . Parts Attached 405 | . 10 4 28 2 28 1 23 11 5 49 54 9 12 6 4 15 4 21 11 34 17 20 21 7 9 Power 34 | . . 1 1 . 2 . . 1 . 4 2 . 1 . . . . 1 . 8 2 4 4 . 3 Engine 11 | . . 1 1 . 1 . . . . . . . . . . . . 1 . 2 1 1 3 . . Core 13 | . . . . . . . . 1 . 3 2 . 1 . . . . . . 2 1 3 . . . Reactor 10 | . . . . . 1 . . . . 1 . . . . . . . . . 4 . . 1 . 3 Propulsion 95 | . 4 . 9 1 4 . 14 1 1 11 11 1 3 . . 6 . 5 5 9 1 2 5 . 2 Treads 64 | . 2 . 9 1 4 . 14 1 1 11 8 1 1 . . 1 . 4 . . . . 4 . 2 Leg 13 | . 2 . . . . . . . . . . . . . . 2 . 1 5 2 . . 1 . . Wheel 6 | . . . . . . . . . . . 1 . 2 . . 3 . . . . . . . . . Hover . | . . . . . . . . . . . . . . . . . . . . . . . . . . Flight 12 | . . . . . . . . . . . 2 . . . . . . . . 7 1 2 . . . Utility 128 | . 3 2 8 1 9 1 4 6 1 13 18 5 4 2 4 8 4 10 1 7 4 5 4 3 1 Device 50 | . 1 . 2 . 4 . 2 3 . 6 7 4 2 1 2 3 1 4 . 2 2 3 . 1 . Storage 9 | . 2 1 1 . . . . . . 1 1 . . . . . . 1 . 1 1 . . . . Processor 9 | . . . . . . . . . . 1 3 . 1 . . . 1 . . 1 1 . 1 . . Hackware 2 | . . . . . . . . 1 . 1 . . . . . . . . . . . . . . . Protection 58 | . . 1 5 1 5 1 2 2 1 4 7 1 1 1 2 5 2 5 1 3 . 2 3 2 1 Artifact . | . . . . . . . . . . . . . . . . . . . . . . . . . . Weapon 148 | . 3 1 10 . 13 . 5 3 3 21 23 3 4 4 . 1 . 5 5 10 10 9 8 4 3 Energy Gun 24 | . 1 . 2 . . . 2 . . 13 1 . . . . . . 1 . 1 . . 2 . 1 Energy Cannon 21 | . 2 1 3 . 1 . . . . 1 8 2 . 1 . . . . 1 1 . . . . . Ballistic Gun 40 | . . . 1 . 8 . 2 1 1 3 6 . 3 1 . 1 . 3 2 3 . . 3 2 . Ballistic Cannon 14 | . . . 3 . 2 . 1 2 2 2 1 . . . . . . . . . 1 . . . . Launcher 20 | . . . 1 . 2 . . . . 1 6 1 . . . . . 1 1 1 . 3 2 . 1 Special Weapon 14 | . . . . . . . . . . 1 . . 1 1 . . . . . 2 2 4 1 2 . Impact Weapon 2 | . . . . . . . . . . . 1 . . 1 . . . . . . . . . . . Slashing Weapon . | . . . . . . . . . . . . . . . . . . . . . . . . . . Piercing Weapon 13 | . . . . . . . . . . . . . . . . . . . 1 2 7 2 . . 1 Special Melee Weapon . | . . . . . . . . . . . . . . . . . . . . . . . . . . Unidentified Prototypes 34 | . . . 1 . 7 . 2 . . 7 12 . . 1 . 1 . 1 . . . . 2 . . Corrupted Parts 15 | . . . . . 1 . . . . . 2 1 . . . . . 1 5 1 . 1 3 . . System Corruption 61 | . . . . . 1 . . . . . 8 4 . . . . . 2 31 5 . 1 9 . . Parts Lost 75 | . . . . . 8 . . 1 . 5 5 1 8 . . . . 2 3 18 2 2 10 1 9 Power 11 | . . . . . 1 . . . . . . . 1 . . . . . . 3 1 . 3 . 2 Propulsion 23 | . . . . . 1 . . . . 1 3 . 2 . . . . 1 2 7 . 2 3 . 1 Utility 23 | . . . . . 4 . . . . 1 2 1 3 . . . . . 1 4 1 . 2 1 3 Weapon 18 | . . . . . 2 . . 1 . 3 . . 2 . . . . 1 . 4 . . 2 . 3 Highest Loss Streak 8 | . . . . . 5 . . 1 . 2 4 1 7 . . . . 2 3 8 2 1 8 1 7 To Critical Strikes 4 | . . . . . 2 . . . . . . . . . . . . . . 1 . . 1 . . Average Slot Usage (%) 87 | . 99 100 99 100 94 86 89 92 88 98 82 70 76 78 84 86 92 92 83 73 87 87 86 77 80 Engine 2 | . 14 14 11 11 7 . . . . . . . . . . . . 5 6 1 4 1 4 5 1 Core 4 | . . . . . . . . 7 9 8 6 7 7 7 7 6 6 . . 2 5 8 . . . Reactor 1 | . . . . . 3 11 9 1 . . . . . . . . . . . . . . 4 5 9 Treads 18 | . 7 28 33 33 33 33 35 36 36 35 18 14 12 7 7 5 6 18 18 . . . 11 17 21 Leg 3 | . 20 . . . . . . . . . . . . . . 9 6 6 19 24 . . . 5 . Wheel 4 | . . . . . . . . . . . 2 . 4 15 15 17 26 13 . . . . . . . Flight 2 | . . . . . . . . . . . . . . . . . . . . 3 41 40 19 . . Device 9 | . 13 11 7 5 . . 5 7 9 11 12 16 22 17 15 14 6 11 6 7 11 11 5 1 . Storage 7 | . 14 14 11 11 11 11 9 9 9 9 7 7 7 7 7 6 6 6 6 6 5 5 5 5 5 Processor 3 | . . . . . . . . . . 7 2 . 1 7 2 . 5 6 6 6 11 11 11 11 11 Protection 9 | . . 2 13 16 17 9 11 10 7 6 7 6 4 3 12 11 12 7 12 7 4 4 9 10 16 Energy Gun 2 | . 11 . 5 . . . 8 . . 12 1 . . . . . . . . . . . . . 2 Energy Cannon 5 | . 15 28 7 . . . . . . . 10 14 12 7 15 12 6 5 1 1 . . . . . Ballistic Gun 4 | . . . . . 14 . 6 16 2 2 2 . 1 1 . . 6 6 2 3 . . 8 10 4 Ballistic Cannon 1 | . . . 8 22 3 22 2 1 15 2 . . . . . . . . . . . . . . . Naked Turns . | . . . . . . . . . . . . . . . . . . . . . . . . . . Heaviest Build 201 | 14 32 34 105 107 107 119 121 133 133 133 201 201 189 177 180 187 187 187 175 185 43 49 76 78 85 Greatest Support 263 | 20 46 46 66 64 67 60 89 93 93 92 124 150 150 40 40 56 48 93 170 170 42 42 180 240 263 Greatest Overweight (x) 53 | . 1 . 1 1 1 1 1 1 1 1 7 7 6 4 4 4 3 14 3 53 1 1 1 . . Average Overweight (x) 1 | . . . . 1 1 1 1 1 1 . 3 1 2 4 4 3 3 4 1 2 . . . . . Largest Inventory Capacity 30 | . 15 15 25 25 25 25 25 25 25 25 30 30 30 30 30 30 30 30 30 30 15 15 15 15 15 Average Capacity 25 | . 11 15 23 25 25 25 25 25 25 25 28 30 30 30 30 30 30 30 30 29 15 15 15 15 15 Most Carried 30 | . 14 15 25 25 25 25 25 25 25 25 30 30 30 30 30 30 30 30 30 30 15 15 15 15 15 Average Carried 25 | . 9 14 21 24 22 24 24 24 24 24 28 28 28 29 29 29 29 29 29 27 13 14 14 14 13 Final Capacity 30 | 8 15 15 25 25 25 25 25 25 25 25 30 30 30 30 30 30 30 30 30 15 15 15 15 15 15 Final Carried 30 | 6 14 15 25 25 25 25 25 24 25 25 30 29 28 29 30 30 30 30 29 14 14 15 15 13 14 Class Distribution -------------------- 40% | Hauler-Mutant 36% | Mutant 15% | Scavenger-Mutant 4% | Commander-Mutant Dominant Class ---------------- Mutant | -10/Materials Mutant | -10/Mines Mutant | -9/Materials Mutant | -9/Mines Mutant | -9/Exiles Mutant | -8/Mines Mutant | -8/Materials Mutant | -8/Garrison Mutant | -8/Materials Mutant | -8/Storage Hauler-Mutant | -7/Factory Hauler-Mutant | -7/Lower Caves Scavenger-Mutant | -7/Lower Caves Hauler-Mutant | -7/Zion Hauler-Mutant | -6/Proximity Caves Hauler-Mutant | -6/Factory Hauler-Mutant | -6/Lower Caves Hauler-Mutant | -6/Lower Caves Hauler-Mutant | -6/Data Miner Scavenger-Mutant | -5/Proximity Caves Sprinter | -5/Factory Commander-Sprinter | -5/Extension Scavenger-Mutant | -5/Cetus Scavenger-Mutant | -5/Archives Scavenger-Mutant | -5/Hub_04(d) Resources | -11 -10 -10 -9 -9 -9 -8 -8 -8 -8 -8 -7 -7 -7 -7 -6 -6 -6 -6 -6 -5 -5 -5 -5 -5 -5 ----------- Run | Jun Mat Min Mat Min Exi Min Mat Gar Mat Sto Fac Low Low Zio Pro Fac Low Low Dat Pro Fac Ext Cet Arc Hub Matter Collected 10301 | 200 20 120 630 153 1084 40 652 842 343 1440 1044 191 437 119 47 173 52 503 166 684 312 300 308 . 441 Remotely . | . . . . . . . . . . . . . . . . . . . . . . . . . . Salvage Created 16457 | . 190 119 654 270 499 . 1542 1028 143 2009 3340 508 611 . . 515 65 941 425 1069 179 406 554 198 1192 Parts 830 | . 10 . 41 16 76 . 82 42 3 89 177 19 26 . . 26 5 32 22 46 10 18 27 8 55 Haulers Intercepted 21 | . 1 . 3 . . . 3 . . 6 5 . . . . 1 . . . . . . . . 2 Recyclers Shooed 10 | . . . 1 . . . . . 1 3 2 . . . . 1 . 1 . . . . . . 1 Parts Field Recycled . | . . . . . . . . . . . . . . . . . . . . . . . . . . Retrieved Matter . | . . . . . . . . . . . . . . . . . . . . . . . . . . Parts Self-Destructed 108 | . . . . . . . . . . . . 16 31 2 8 . 4 17 . 30 . . . . . Prevented 13 | . . . . . . . . . . . . 4 . . 1 . . 8 . . . . . . . Kills | -11 -10 -10 -9 -9 -9 -8 -8 -8 -8 -8 -7 -7 -7 -7 -6 -6 -6 -6 -6 -5 -5 -5 -5 -5 -5 ------- Run | Jun Mat Min Mat Min Exi Min Mat Gar Mat Sto Fac Low Low Zio Pro Fac Low Low Dat Pro Fac Ext Cet Arc Hub Combat Hostiles Destroyed 280 | . 1 7 17 7 3 . 27 22 3 26 58 8 10 . . 3 2 14 4 27 3 8 10 5 15 Melee 1 | . . . . . . . . . . . . . . . . . . . . . . . . . 1 Guns 105 | . 1 . 1 . 1 . 24 18 1 15 6 . 1 . . . 2 6 2 11 . . 7 1 8 Cannons 108 | . . 7 11 7 . . 1 4 2 11 38 3 9 . . 3 . 3 . 5 1 2 1 . . AOE 57 | . . . 4 . 2 . 1 . . . 13 4 . . . . . 5 . 11 2 5 2 4 4 Classes Destroyed 25 | . 3 1 4 3 2 . 2 1 . 1 3 1 1 . . . . . . 1 1 1 . . . Worker 23 | . . . . 2 . . 6 . . 1 9 . . . . 1 . . . . 1 . . . 3 Builder 8 | . . . . . . . 2 . . 1 1 . . . . 2 . . . . . 1 . . 1 Tunneler 4 | . . . . 1 . . . . . . 2 . . . . . . . . . 1 . . . . Hauler 21 | . 1 . 3 . . . 3 . . 6 5 . . . . 1 . . . . . . . . 2 Recycler 15 | . 1 . 1 . . . 2 . 1 5 3 . . . . 1 . . . . . . . . 1 Mechanic 4 | . . . . . . . . . . 1 3 . . . . . . . . . . . . . . Operator 3 | . . . 1 . . . 1 . . 1 . . . . . . . . . . . . . . . Drone 2 | . . . . . . . . . . . . . . . . . . . . 2 . . . . . Turret 1 | . . . . . 1 . . . . . . . . . . . . . . . . . . . . Watcher 8 | . . . 1 . . . 2 . . 1 1 . . . . . . . . . . . 2 . 1 Swarmer 41 | . . . 7 . . . 7 3 . 2 7 . . . . . 2 4 . 6 . . 3 . . Saboteur 1 | . . . . . . . . . . . . . . . . . . . . . . 1 . . . Grunt 121 | . 1 . 5 5 . . 10 8 2 16 33 4 4 . . . . 3 . 12 3 3 . 5 7 Brawler 7 | . . . . 2 . . . . . . 1 . 1 . . . . . . . . 2 . . 1 Duelist 4 | . . . . . . . . 1 . . 1 1 1 . . . . . . . . . . . . Protector 2 | . . . . . . . . . . . 1 . . . . . . . . . . . . . 1 Sentry 48 | . . . 5 . . . 9 10 1 8 3 1 1 . . 1 . 2 . 3 . 1 . . 3 Specialist 2 | . . . . . . . . . . . 2 . . . . . . . . . . . . . . Hunter 11 | . . . . . . . 1 . . 1 3 1 2 . . 1 . . . 2 . . . . . Programmer 9 | . . . . . . . . . . . 7 . . . . 1 . . . 1 . . . . . Behemoth 4 | . . . . . . . . . . . . 1 1 . . . . . . 1 . 1 . . . Cetus Guard 7 | . . . . . . . . . . . . . . . . . . . . . . . 7 . . Enhanced Grunt 5 | . . . . . . . . . . . . . . . . 1 . . 4 . . . . . . Lightning 3 | . . . . . . . . . . . . . . . . . . . . . . . . . 3 Zionite 8 | . . . . . 8 . . . . . . . . . . . . . . . . . . . . Decomposer 1 | . . . . . . . . . . . . . . . . . 1 . . . . . . . . Packrat 2 | . . . . . . . . . . . . . . . . . . 2 . . . . . . . Assembled 9 | . . 7 . . 2 . . . . . . . . . . . . . . . . . . . . Thug 4 | . . . . . . . . . . . . . . . . . . 4 . . . . . . . Butcher 1 | . . . . . . . . . . . . . . . . . . . . . . 1 . . . Fireman 1 | . . . . . . . . . . . . . . . . . . . . . 1 . . . . Mutant 2 | . . . . . . . . . . . . . 1 . . . . 1 . . . . . . . Best Kill Streak 17 | . 3 3 9 5 4 . 9 7 1 6 17 6 4 . . 2 2 6 4 11 3 4 4 5 12 Combat Bots Only 11 | . 1 3 6 5 2 . 9 7 1 3 9 6 4 . . 1 2 6 4 11 3 4 3 5 7 Max Kills in Single Turn 6 | . 1 1 3 1 2 . 2 1 1 1 6 3 1 . . 2 1 1 1 4 2 2 1 2 3 Gunslinging . | . . . . . . . . . . . . . . . . . . . . . . . . . . Exploded 4 | . . . 3 . 1 . 1 . . . 4 3 . . . . . 1 . 4 1 2 1 2 2 Melee 1 | . . . . . . . . . . . . . . . . . . . . . . . . . 1 Uniques/NPCs Destroyed 5 | . . . . . 4 . . . . 1 . . . . . . . . . . . . . . . 8R-AWN (-9/Exiles) EX-DEC (-9/Exiles) EX-HEX (-9/Exiles) EX-BIN (-9/Exiles) 01-MTF (-8/Storage) Combat | -11 -10 -10 -9 -9 -9 -8 -8 -8 -8 -8 -7 -7 -7 -7 -6 -6 -6 -6 -6 -5 -5 -5 -5 -5 -5 -------- Run | Jun Mat Min Mat Min Exi Min Mat Gar Mat Sto Fac Low Low Zio Pro Fac Low Low Dat Pro Fac Ext Cet Arc Hub Damage Taken 24095 | . 43 225 556 92 1364 . 1064 914 315 2310 2841 1053 1922 . . 408 88 1517 369 3409 258 391 1182 1073 2701 Core 2528 | . 12 37 54 12 196 . 15 24 11 276 252 21 193 . . 62 16 102 30 582 80 99 204 . 250 Absorbed by Shields 1398 | . . . . . . . . 255 116 228 497 202 6 . . . . . . . . 80 14 . . Reduced by Siege Mode 303 | . . . . . . . . . . . . 91 166 . . . . . . . . . 46 . . Redirected to Shielding 84 | . . . . . . . . . . . . . . . . . . . . 84 . . . . . Regen/Repaired (Parts) 1599 | . . . . . . . 326 . 232 583 458 . . . . . . . . . . . . . . Core Remaining (%) 48 | 100 . 80 . . . 34 . . . 40 . . . . 33 . . . . 6 . . . . . Volleys Fired 1051 | . 10 25 43 11 99 . 103 93 32 155 130 25 54 . 3 20 3 47 7 84 3 17 38 11 38 Largest 2 | . 2 2 2 2 2 . 2 2 2 2 2 2 2 . 2 2 2 2 2 2 1 1 2 2 2 Hottest 210 | . 90 120 125 88 79 . 122 88 88 116 210 210 210 . 190 190 120 154 49 129 . 49 70 70 70 Shots Fired 1862 | . 20 46 76 22 179 . 206 185 54 287 248 43 108 . 6 40 6 84 10 108 3 17 48 16 50 Gun 1098 | . 20 . 14 . 152 . 188 170 17 228 73 . 15 . . 5 3 47 6 72 . . 39 6 43 Cannon 650 | . . 46 60 22 9 . 18 15 37 52 166 40 89 . 6 35 3 29 . 23 . . . . . Launcher 66 | . . . 2 . 18 . . . . 1 9 3 . . . . . 8 4 1 . 9 4 . 7 Special 48 | . . . . . . . . . . 6 . . 4 . . . . . . 12 3 8 5 10 . Kinetic 909 | . . . 32 22 152 . 104 185 54 124 51 . 15 . . 5 3 47 6 56 . . 20 6 27 Thermal 796 | . 20 46 31 . . . 102 . . 162 182 40 93 . 6 35 3 29 . 39 . . . 8 . Explosive 66 | . . . 2 . 18 . . . . 1 7 . . . . . . . . 13 3 8 5 2 7 Electromagnetic 72 | . . . 11 . 9 . . . . . 8 3 . . . . . 8 4 . . 9 4 . 16 Phasic 19 | . . . . . . . . . . . . . . . . . . . . . . . 19 . . Robot Hit Streak 23 | . 6 4 12 4 21 . 8 16 8 20 23 6 14 . . 5 3 10 7 8 3 8 17 22 12 Robot Miss Streak 11 | . 1 3 7 6 4 . 11 6 8 8 4 3 3 . 2 2 5 4 1 4 1 1 1 1 11 Penetration Max 1 | . . . . . 1 . . . . . . . . . . . . . . . . . . . 1 Secondary Targets 9 | . . . . . . . 1 2 . 2 . . . . . . . 1 . 1 . . 1 . 1 Max Gunslinging Chain 1 | . . . . . . . 1 1 . 1 . . . . . . . 1 . 1 . . 1 . 1 Shots Hit Robots 1234 | . 15 21 63 19 126 . 132 95 46 212 163 21 69 . . 17 3 45 9 70 4 10 37 11 46 Core Hits 849 | . 7 13 52 30 47 . 70 44 32 110 109 12 22 . . 12 3 30 10 54 9 26 27 18 112 Critical Kills 15 | . . . . . 1 . 1 1 . 1 1 . . . . 1 . . 2 4 . . 1 . 2 Critical Parts Destroyed 20 | . . . . . 2 . . . . . . . 4 . . . . 2 1 7 . . 1 . 3 Critical Strikes 72 | . 1 . 1 . 3 . 10 1 . 8 3 . 6 . . 1 . 2 3 17 . 1 6 3 6 Burn 20 | . 1 . 1 . . . 9 . . 7 2 . . . . . . . . . . . . . . Meltdown 2 | . . . . . . . . . . . 1 . . . . 1 . . . . . . . . . Destroy 39 | . . . . . 3 . 1 1 . 1 . . 6 . . . . 2 3 13 . . 4 . 5 Corrupt 1 | . . . . . . . . . . . . . . . . . . . . . . . . . 1 Sever 10 | . . . . . . . . . . . . . . . . . . . . 4 . 1 2 3 . Melee Attacks 30 | . . . . . . . . . . . . . . 1 . . . . 1 11 10 2 . . 5 Impact 1 | . . . . . . . . . . . . . . 1 . . . . . . . . . . . Slashing . | . . . . . . . . . . . . . . . . . . . . . . . . . . Piercing 29 | . . . . . . . . . . . . . . . . . . . 1 11 10 2 . . 5 Sneak Attacks 3 | . . . . . . . . . . . . . . . . . . . 1 . 2 . . . . Combat Hostiles . | . . . . . . . . . . . . . . . . . . . . . . . . . . Follow-up Attacks . | . . . . . . . . . . . . . . . . . . . . . . . . . . Damage Inflicted 41359 | . 178 368 1437 352 2215 . 2652 1646 680 3968 7476 1248 2510 . . 643 150 1663 511 3884 804 2383 1815 1422 3354 Guns 14494 | . 178 . 123 . 1777 . 2243 1437 152 2939 1151 . 156 . . 92 50 602 112 1118 . . 1033 82 1249 Cannons 12276 | . . 364 1020 333 10 . 284 209 528 943 3726 715 2324 . . 531 71 724 . 494 . . . . . Explosions 12623 | . . . 288 . 423 . 70 . . 44 2544 533 . . . . . 337 333 1681 555 2110 579 1144 1982 Melee 555 | . . . . . . . . . . . . . . . . . . . 66 178 154 34 . . 123 Ramming 214 | . . 4 6 19 5 . 55 . . 21 55 . . . . 20 29 . . . . . . . . Kinetic 11917 | . . . 614 333 1777 . 1107 1646 680 1857 955 . 156 . . 92 50 602 112 692 . . 457 82 705 Thermal 14162 | . 178 364 319 . . . 1490 . . 2046 4297 715 2354 . . 531 71 724 . 952 . . . 121 . Explosive 9893 | . . . 288 . 423 . . . . 44 1667 . . . . . . . . 1649 555 1831 310 1144 1982 Electromagnetic 3017 | . . . 210 . 10 . . . . . 502 533 . . . . . 337 333 . . 279 269 . 544 Impact . | . . . . . . . . . . . . . . . . . . . . . . . . . . Slashing 1025 | . . . . . . . . . . . . . . . . . . . . 413 95 239 203 75 . Piercing 555 | . . . . . . . . . . . . . . . . . . . 66 178 154 34 . . 123 Phasic 576 | . . . . . . . . . . . . . . . . . . . . . . . 576 . . Highest Corruption 40 | . . . . . 1 1 . . . 2 15 22 22 22 . . . 2 33 40 2 3 12 12 28 Average Corruption 14 | . . . . . 1 1 . . . 2 11 19 22 22 . . . 2 8 38 2 2 4 10 12 Corruption Purged 2 | . . . . . . . . . . . . . . . . . . . . . . . . 2 . Corruption Blocked . | . . . . . . . . . . . . . . . . . . . . . . . . . . Effects 589 | . . . . . 9 1 . . . 14 118 54 105 1 . . . 19 19 166 1 11 12 37 22 Message Errors 147 | . . . . . 3 . . . . 2 29 18 25 . . . . 4 3 43 1 1 3 12 3 Matter Fused 115 | . . . . . 2 1 . . . 2 18 8 24 1 . . . 4 1 35 . 4 2 9 4 Heat Flow Errors 68 | . . . . . . . . . . 2 17 10 8 . . . . 2 5 16 . . 4 1 3 Energy Discharges 69 | . . . . . . . . . . 3 14 4 11 . . . . 2 4 19 . 4 . 6 2 Parts Rejected 9 | . . . . . . . . . . . 2 . 1 . . . . . . 3 . 1 . . 2 Parts Fused 8 | . . . . . . . . . . . . 1 3 . . . . . . 4 . . . . . Data Loss (minor) 73 | . . . . . 2 . . . . 3 18 3 13 . . . . 5 5 18 . 1 2 2 1 Data Loss (major) 27 | . . . . . . . . . . . 4 3 5 . . . . 1 1 11 . . 1 1 . Misfires 32 | . . . . . 1 . . . . 1 7 2 10 . . . . 1 . 5 . . . 4 1 Alerts 13 | . . . . . 1 . . . . . 5 1 1 . . . . . . 1 . . . 2 2 Misdirections 5 | . . . . . . . . . . . 1 . . . . . . . . 3 . . . . 1 Weapon Failures 23 | . . . . . . . . . . 1 3 4 4 . . . . . . 8 . . . . 3 Overload Shots . | . . . . . . . . . . . . . . . . . . . . . . . . . . Overflow Damage 574 | . . 17 8 . . . . . 9 . 273 10 57 . . 9 10 27 . 18 70 40 . 20 6 Projectiles 249 | . . 17 8 . . . . . 9 . 111 . 57 . . 9 10 12 . 15 . 1 . . . Explosions 280 | . . . . . . . . . . . 157 10 . . . . . 15 . 3 30 39 . 20 6 Melee 45 | . . . . . . . . . . . 5 . . . . . . . . . 40 . . . . Knockbacks 91 | . . . 14 9 . . 9 2 27 27 2 . . . . 1 . . . . . . . . . Impact 3 | . . . . 1 . . . . . . 1 . . . . 1 . . . . . . . . . Kinetic 84 | . . . 13 8 . . 9 2 25 26 1 . . . . . . . . . . . . . . Secondary 4 | . . . 1 . . . . . 2 1 . . . . . . . . . . . . . . . Self-Inflicted Damage 1068 | . . . . . 41 . 75 . . 1 414 97 . . . 10 14 30 . 201 . 5 . . 180 Shots 32 | . . . . . 1 . 1 . . 1 9 3 . . . . . 2 . 6 . 1 . . 8 Rammed 17 | . . 1 1 3 1 . 2 . . 2 5 . . . . 1 1 . . . . . . . . Targets Rammed 19 | . . 1 1 3 1 . 4 . . 2 5 . . . . 1 1 . . . . . . . . Kicked . | . . . . . . . . . . . . . . . . . . . . . . . . . . Crushed 2 | . . . . . . . 2 . . . . . . . . . . . . . . . . . . Highest Temperature 540 | . 24 282 312 42 203 . 139 370 361 301 372 540 444 . 90 78 48 224 179 205 . 13 246 178 263 Average Temperature 90 | . 17 93 69 12 94 . 32 102 177 70 86 111 147 . 37 29 26 56 69 86 . 3 71 47 72 Received Heat Transfer 5567 | . 24 160 150 51 18 . 378 376 171 1053 675 189 294 . . . . 745 . 621 18 101 198 18 327 Effects 22 | . . 2 3 . . . . 1 6 4 1 2 3 . . . . . . . . . . . . Shutdowns 4 | . . . . . . . . . 3 . . 1 . . . . . . . . . . . . . Energy Bleed 7 | . . . 2 . . . . . 2 1 1 1 . . . . . . . . . . . . . Interference 5 | . . 2 . . . . . . . 3 . . . . . . . . . . . . . . . Matter Decay 4 | . . . . . . . . 1 . . . . 3 . . . . . . . . . . . . Short Circuit 2 | . . . 1 . . . . . 1 . . . . . . . . . . . . . . . . Siege Activations 4 | . . . . . . . . . . . . 2 1 . . . . . . . . . 1 . . Total Turns 126 | . . . . . . . . . . . . 49 42 . . . . . . . . . 35 . . Longest Duration 42 | . . . . . . . . . . . . 29 42 . . . . . . . . . 35 . . Robots Corrupted 7 | . . . 1 . . . . . . . 1 1 . . . . . . 2 . . . . . 2 Combat Hostiles 6 | . . . 1 . . . . . . . . 1 . . . . . . 2 . . . . . 2 Parts Fried 18 | . . . 2 . . . . . . . 3 3 . . . . . . 6 . . . 1 . 3 Impact Corruptions 1 | . . . . . . . . . . . 1 . . . . . . . . . . . . . . Robots Melted 3 | . . . . . . . 1 . . . 1 . . . . 1 . . . . . . . . . Combat Hostiles 2 | . . . . . . . 1 . . . 1 . . . . . . . . . . . . . . Parts Melted 43 | . . . 2 . . . 14 . . 8 10 . 1 . . 5 . . . 2 . . . 1 . Heat Transferred 20386 | . 533 777 753 . . . 3393 . . 4958 4742 703 2294 . . 592 74 740 . 568 . . . 259 . Parts Sabotaged . | . . . . . . . . . . . . . . . . . . . . . . . . . . Parts Stolen . | . . . . . . . . . . . . . . . . . . . . . . . . . . Parts Stripped . | . . . . . . . . . . . . . . . . . . . . . . . . . . Power Chain Reactions 1 | . . . . . . . . . . . . . . . . . . . . 1 . . . . . Missiles Intercepted . | . . . . . . . . . . . . . . . . . . . . . . . . . . Alert | -11 -10 -10 -9 -9 -9 -8 -8 -8 -8 -8 -7 -7 -7 -7 -6 -6 -6 -6 -6 -5 -5 -5 -5 -5 -5 ------- Run | Jun Mat Min Mat Min Exi Min Mat Gar Mat Sto Fac Low Low Zio Pro Fac Low Low Dat Pro Fac Ext Cet Arc Hub Peak Influence 1583 | . 32 . 236 175 . . 423 1086 669 719 1534 . . . . 715 . . . . 996 1583 989 489 492 Initial 823 | . . . . 91 . . . 276 529 282 282 . . . . 300 . . . . 694 394 823 315 44 Average 493 | . 27 . 154 61 . . 160 646 591 472 946 . . . . 392 . . . . 785 892 777 309 283 Maximum Alert Level 4 | . . . 1 . . . 2 3 2 3 4 . . . . 3 . . . . 3 4 3 2 2 Low Security (%) 27 | . 100 100 49 100 . 100 50 . . . 5 . . . . 11 . . . . . . . 15 32 Level 1 25 | . . . 50 . . . 47 12 . 38 17 . . . . 56 . . . . . 2 . 62 54 Level 2 20 | . . . . . . . 2 39 100 55 6 . . . . 29 . . . . 8 30 35 22 13 Level 3 14 | . . . . . . . . 47 . 4 19 . . . . 3 . . . . 91 43 64 . . Level 4 12 | . . . . . . . . . . . 51 . . . . . . . . . . 23 . . . Level 5 . | . . . . . . . . . . . . . . . . . . . . . . . . . . High Security . | . . . . . . . . . . . . . . . . . . . . . . . . . . Max Security . | . . . . . . . . . . . . . . . . . . . . . . . . . . Squads Dispatched 48 | . . . 2 . . . 3 . 1 9 21 . 1 . . 3 . . . 1 1 3 . . 3 Investigation 9 | . . . . . . . . . . 2 5 . . . . . . . . 1 1 . . . . Extermination 6 | . . . . . . . . . . . 4 . . . . 2 . . . . . . . . . Reinforcement 19 | . . . 2 . . . 1 . 1 4 7 . . . . 1 . . . . . 1 . . 2 Assault 8 | . . . . . . . . . . . 5 . 1 . . . . . . . . 2 . . . Garrison 6 | . . . . . . . 2 . . 3 . . . . . . . . . . . . . . 1 Intercept . | . . . . . . . . . . . . . . . . . . . . . . . . . . Searches Triggered 1 | . . . . . . . . . . . . . . . . . . . . . 1 . . . . Construction Impeded 9 | . . . . . . . 1 . . 2 5 . . . . . . . . . . 1 . . . Haulers Reinforced 2 | . . . . . . . . . . . 1 . . . . 1 . . . . . . . . . Active Scanning Responses . | . . . . . . . . . . . . . . . . . . . . . . . . . . Cargo Convoy Interrupts 1 | . . . . . . . . . . . 1 . . . . . . . . . . . . . . Stealth | -11 -10 -10 -9 -9 -9 -8 -8 -8 -8 -8 -7 -7 -7 -7 -6 -6 -6 -6 -6 -5 -5 -5 -5 -5 -5 --------- Run | Jun Mat Min Mat Min Exi Min Mat Gar Mat Sto Fac Low Low Zio Pro Fac Low Low Dat Pro Fac Ext Cet Arc Hub Distress Signals 20 | . 1 . 3 . . . 3 . . 6 . . . . . . . . . 1 . 2 2 . 2 Communications Jammed . | . . . . . . . . . . . . . . . . . . . . . . . . . . Distress Signals . | . . . . . . . . . . . . . . . . . . . . . . . . . . Times Spotted 497 | . 3 7 22 7 39 . 34 22 10 42 91 7 19 . 4 12 3 17 5 36 15 41 17 17 27 Peak Tracking Total 16 | . 1 2 5 4 9 . 5 7 4 7 12 6 6 . 3 3 3 7 4 11 6 8 5 16 8 Tactical Retreats 27 | . . 2 . . 3 . . . 1 2 . . 1 . . 1 . . . 7 4 5 . . 1 Traps | -11 -10 -10 -9 -9 -9 -8 -8 -8 -8 -8 -7 -7 -7 -7 -6 -6 -6 -6 -6 -5 -5 -5 -5 -5 -5 ------- Run | Jun Mat Min Mat Min Exi Min Mat Gar Mat Sto Fac Low Low Zio Pro Fac Low Low Dat Pro Fac Ext Cet Arc Hub Traps Triggered 26 | . . . 3 . . . 2 2 . 4 7 . 2 . . . . . . . 3 3 . . . Indirectly 2 | . . . . . . . . . . . 1 . . . . . . . . . . 1 . . . Trap Hack Attempts . | . . . . . . . . . . . . . . . . . . . . . . . . . . Triggered . | . . . . . . . . . . . . . . . . . . . . . . . . . . Disarmed . | . . . . . . . . . . . . . . . . . . . . . . . . . . Reprogrammed . | . . . . . . . . . . . . . . . . . . . . . . . . . . Reused 5 | . . . . . 5 . . . . . . . . . . . . . . . . . . . . Traps Extracted . | . . . . . . . . . . . . . . . . . . . . . . . . . . Installed 7 | . . . . . 5 . . . . . . . . . . . . . . . . . . . 2 Triggered . | . . . . . . . . . . . . . . . . . . . . . . . . . . Most Traps Carried 5 | . . . . 5 5 . . . . . . . . . . . . . . . . . . . 2 Exploded 3 | . . . . . 3 . . . . . . . . . . . . . . . . . . . . Machines | -11 -10 -10 -9 -9 -9 -8 -8 -8 -8 -8 -7 -7 -7 -7 -6 -6 -6 -6 -6 -5 -5 -5 -5 -5 -5 ---------- Run | Jun Mat Min Mat Min Exi Min Mat Gar Mat Sto Fac Low Low Zio Pro Fac Low Low Dat Pro Fac Ext Cet Arc Hub Machines Disabled 69 | . . . . . 8 . 3 4 . 4 31 . 1 . . 3 . 4 . 5 . 3 1 1 1 Max in Single Turn 16 | . . . . . 2 . 1 1 . 1 16 . 1 . . 1 . 1 . 2 . 1 . 1 1 Garrison Access 2 | . . . . . . . . . . . 2 . . . . . . . . . . . . . . Garrison Relay 3 | . . . . . . . . 3 . . . . . . . . . . . . . . . . . Network Hub 1 | . . . . . . . . . . . . . . . . . . . . . . . . . 1 Machines Repaired . | . . . . . . . . . . . . . . . . . . . . . . . . . . Machines Sabotaged . | . . . . . . . . . . . . . . . . . . . . . . . . . . Overloaded Fab Kills . | . . . . . . . . . . . . . . . . . . . . . . . . . . Hacking | -11 -10 -10 -9 -9 -9 -8 -8 -8 -8 -8 -7 -7 -7 -7 -6 -6 -6 -6 -6 -5 -5 -5 -5 -5 -5 --------- Run | Jun Mat Min Mat Min Exi Min Mat Gar Mat Sto Fac Low Low Zio Pro Fac Low Low Dat Pro Fac Ext Cet Arc Hub Machines Accessed 63 | . . . 3 . 2 . 11 2 2 11 16 . 1 . . 2 2 2 4 1 3 . . 1 . Terminals 38 | . . . 3 . . . 9 2 1 9 11 . . . . 1 1 . . 1 . . . . . Fabricators 3 | . . . . . . . . . . . 2 . . . . . . . . . 1 . . . . Repair Stations 6 | . . . . . . . 1 . 1 2 1 . . . . . . . . . 1 . . . . Recycling Units . | . . . . . . . . . . . . . . . . . . . . . . . . . . Scanalyzers . | . . . . . . . . . . . . . . . . . . . . . . . . . . Garrison Access 5 | . . . . . . . 1 . . . 2 . . . . 1 . . . . 1 . . . . Total Hacks 192 | . . . 9 . 2 . 36 4 5 26 38 . 1 . . 4 2 6 26 3 5 . . 25 . Successful 124 | . . . 6 . 2 . 18 1 3 13 15 . 1 . . 1 2 6 26 3 2 . . 25 . Failed 68 | . . . 3 . . . 18 3 2 13 23 . . . . 3 . . . . 3 . . . . Catastrophic 18 | . . . . . . . 6 1 . 3 7 . . . . . . . . . 1 . . . . Database Lockouts . | . . . . . . . . . . . . . . . . . . . . . . . . . . Manual 132 | . . . 5 . 1 . 18 1 . 10 17 . . 1 . 30 . . . . 21 20 1 . 7 Terminals 94 | . . . 9 . . . 28 4 3 19 26 . . . . 1 1 . . 3 . . . . . Fabricators 6 | . . . . . . . . . . . 3 . . . . . . . . . 3 . . . . Repair Stations 24 | . . . . . . . 7 . 2 7 7 . . . . . . . . . 1 . . . . Recycling Units . | . . . . . . . . . . . . . . . . . . . . . . . . . . Scanalyzers . | . . . . . . . . . . . . . . . . . . . . . . . . . . Garrison Access 7 | . . . . . . . 1 . . . 2 . . . . 3 . . . . 1 . . . . Terminal Hacks 91 | . . . 4 . 2 . 8 1 1 7 4 . 1 . . 1 2 6 26 3 . . . 25 . Record 46 | . . . . . 1 . . . . . . . . . . . 1 5 11 3 . . . 25 . Part Schematic 8 | . . . . . . . . . . . . . . . . . . . 8 . . . . . . Robot Schematic 4 | . . . . . . . . . . . . . . . . . . . 4 . . . . . . Prototype ID Bank 3 | . . . . . . . . . . . . . . . . . . . 3 . . . . . . Open Door 5 | . . . . . . . . . . 2 . . 1 . . . 1 1 . . . . . . . Open DSF 1 | . . . . . . . . . . . . . . . . 1 . . . . . . . . . Branch Access Points 3 | . . . 1 . . . . . 1 . 1 . . . . . . . . . . . . . . Emergency Access Points 1 | . . . . . . . . 1 . . . . . . . . . . . . . . . . . Terminal Index 1 | . . . . . . . . . . 1 . . . . . . . . . . . . . . . Garrison Index 1 | . . . . . . . 1 . . . . . . . . . . . . . . . . . . Alert Level 2 | . . . . . . . 1 . . 1 . . . . . . . . . . . . . . . Unreport Threat 8 | . . . 1 . . . 2 . . 2 3 . . . . . . . . . . . . . . Transport Status 1 | . . . 1 . . . . . . . . . . . . . . . . . . . . . . Hauler Manifests 1 | . . . 1 . . . . . . . . . . . . . . . . . . . . . . Zone Layout 5 | . . . . . . . 4 . . 1 . . . . . . . . . . . . . . . EX-Prototype ID Bank 1 | . . . . . 1 . . . . . . . . . . . . . . . . . . . . Fabricator Hacks 1 | . . . . . . . . . . . . . . . . . . . . . 1 . . . . Load Schematic 1 | . . . . . . . . . . . . . . . . . . . . . 1 . . . . Repair Station Hacks 19 | . . . . . . . 6 . 2 5 6 . . . . . . . . . . . . . . Scan Component 10 | . . . . . . . 3 . 1 3 3 . . . . . . . . . . . . . . Repair 9 | . . . . . . . 3 . 1 2 3 . . . . . . . . . . . . . . Recycling Unit Hacks . | . . . . . . . . . . . . . . . . . . . . . . . . . . Scanalyzer . | . . . . . . . . . . . . . . . . . . . . . . . . . . Garrison Access Hacks 3 | . . . . . . . 1 . . . 2 . . . . . . . . . . . . . . Unlock Access 1 | . . . . . . . 1 . . . . . . . . . . . . . . . . . . Seal Access 2 | . . . . . . . . . . . 2 . . . . . . . . . . . . . . Unauthorized Hacks 10 | . . . 2 . . . 3 . . 1 3 . . . . . . . . . 1 . . . . Terminals 8 | . . . 2 . . . 3 . . 1 2 . . . . . . . . . . . . . . Botnet 8 | . . . 2 . . . 3 . . 1 2 . . . . . . . . . . . . . . Fabricators 2 | . . . . . . . . . . . 1 . . . . . . . . . 1 . . . . Haulers 1 | . . . . . . . . . . . 1 . . . . . . . . . . . . . . Recompile 1 | . . . . . . . . . . . . . . . . . . . . . 1 . . . . Repair Stations . | . . . . . . . . . . . . . . . . . . . . . . . . . . Recycling Units . | . . . . . . . . . . . . . . . . . . . . . . . . . . Scanalyzers . | . . . . . . . . . . . . . . . . . . . . . . . . . . Garrison Access . | . . . . . . . . . . . . . . . . . . . . . . . . . . Data Cores Recovered 3 | . . . . . . . 1 . . . . . . . . 2 . . . . . . . . . Used 1 | . . . . . . . 1 . . . . . . . . . . . . . . . . . . Hacking Detections 44 | . . . 3 . . . 9 2 2 9 14 . . . . 1 . . . 1 3 . . . . Full Trace Events 11 | . . . . . . . . 1 1 3 5 . . . . . . . . 1 . . . . . Feedback Events 1 | . . . . . . . . . . . . . . . . . . . . 1 . . . . . Corruption 1 | . . . . . . . . . . . . . . . . . . . . 1 . . . . . Feedback Blocked . | . . . . . . . . . . . . . . . . . . . . . . . . . . Robot Schematics Acquired 12 | . . . . . . . . . . . . . . 4 . . . . 4 . . 4 . . . Robots Built . | . . . . . . . . . . . . . . . . . . . . . . . . . . Authchips . | . . . . . . . . . . . . . . . . . . . . . . . . . . Time . | . . . . . . . . . . . . . . . . . . . . . . . . . . Total Robot Build Rating . | . . . . . . . . . . . . . . . . . . . . . . . . . . Part Schematics Acquired 51 | . . . . . . . . . . . . . . 15 . . . . 8 . 28 . . . . Parts Built . | . . . . . . . . . . . . . . . . . . . . . . . . . . Authchips . | . . . . . . . . . . . . . . . . . . . . . . . . . . Time . | . . . . . . . . . . . . . . . . . . . . . . . . . . Total Part Build Rating . | . . . . . . . . . . . . . . . . . . . . . . . . . . Parts Repaired 9 | . . . . . . . 3 . 1 2 3 . . . . . . . . . . . . . . Time 414 | . . . . . . . 108 . 38 112 156 . . . . . . . . . . . . . . Parts Recycled . | . . . . . . . . . . . . . . . . . . . . . . . . . . Recycled Matter . | . . . . . . . . . . . . . . . . . . . . . . . . . . Retrieved Matter . | . . . . . . . . . . . . . . . . . . . . . . . . . . Retrieved Components . | . . . . . . . . . . . . . . . . . . . . . . . . . . Parts Scanalyzed . | . . . . . . . . . . . . . . . . . . . . . . . . . . Part Schematics Acquired . | . . . . . . . . . . . . . . . . . . . . . . . . . . Parts Damaged . | . . . . . . . . . . . . . . . . . . . . . . . . . . Bothacking | -11 -10 -10 -9 -9 -9 -8 -8 -8 -8 -8 -7 -7 -7 -7 -6 -6 -6 -6 -6 -5 -5 -5 -5 -5 -5 ------------ Run | Jun Mat Min Mat Min Exi Min Mat Gar Mat Sto Fac Low Low Zio Pro Fac Low Low Dat Pro Fac Ext Cet Arc Hub Used RIF Installer . | . . . . . . . . . . . . . . . . . . . . . . . . . . Robots Hacked . | . . . . . . . . . . . . . . . . . . . . . . . . . . Non-combat . | . . . . . . . . . . . . . . . . . . . . . . . . . . Combat . | . . . . . . . . . . . . . . . . . . . . . . . . . . Robot Hacks Applied . | . . . . . . . . . . . . . . . . . . . . . . . . . . Relay Couplers Released 13 | . . . . . . . . 13 . . . . . . . . . . . . . . . . . Machine Destruction 13 | . . . . . . . . 13 . . . . . . . . . . . . . . . . . Fabnet Peak Effective % . | . . . . . . . . . . . . . . . . . . . . . . . . . . Robots Rewired 19 | . . . . . . . . . . . . 2 . . . . . 4 . . . 13 . . . Allies Hacked 2 | . . . . . . . . . . . . . . . . 2 . . . . . . . . . Hacks Repelled . | . . . . . . . . . . . . . . . . . . . . . . . . . . Allies | -11 -10 -10 -9 -9 -9 -8 -8 -8 -8 -8 -7 -7 -7 -7 -6 -6 -6 -6 -6 -5 -5 -5 -5 -5 -5 -------- Run | Jun Mat Min Mat Min Exi Min Mat Gar Mat Sto Fac Low Low Zio Pro Fac Low Low Dat Pro Fac Ext Cet Arc Hub Total Allies 65 | . . . . . . . . . . 11 . 2 . 6 . 6 . 7 . . 3 27 1 . 2 Largest Group 14 | . . . . . . . . . . 11 4 2 2 6 6 12 3 7 4 . 3 14 12 . 2 Highest-Rated Group 766 | . . . . . . . . . . 273 74 48 48 346 346 766 174 184 91 . 84 593 544 . 63 Highest-Rated Ally 159 | . . . . . . . . . . 100 29 32 32 96 96 96 70 70 31 . 28 159 159 . 35 Zionite Dispatches 8 | . . . . . . . . . . . . . . . . 2 . . . . 1 3 . . 2 Heavy 1 | . . . . . . . . . . . . . . . . . . . . . . 1 . . . Light 2 | . . . . . . . . . . . . . . . . 2 . . . . . . . . . Fire 1 | . . . . . . . . . . . . . . . . . . . . . 1 . . . . Demo 1 | . . . . . . . . . . . . . . . . . . . . . . . . . 1 Trap Resupply 1 | . . . . . . . . . . . . . . . . . . . . . . . . . 1 Hover Resupply 2 | . . . . . . . . . . . . . . . . . . . . . . 2 . . . Total Orders 9 | . . . . . . . . . . . . . . . . . . 2 5 . . 1 . . 1 STAY 4 | . . . . . . . . . . . . . . . . . . 1 3 . . . . . . FOLLOW 3 | . . . . . . . . . . . . . . . . . . 1 2 . . . . . . DROP 2 | . . . . . . . . . . . . . . . . . . . . . . 1 . . 1 Ally Attacks 429 | . . . . . . . . . . 57 7 . 21 . 15 70 7 19 5 . 8 184 35 . 1 Total Damage 11088 | . . . . . . . . . . 819 97 . 607 . 463 2191 120 320 150 . 112 4710 1489 . 10 Kills 88 | . . . . . . . . . . 8 2 . 6 . 5 17 1 2 . . 2 37 8 . . Allies Corrupted 3 | . . . . . . . . . . . . . 1 . . 2 . . . . . . . . . Allies Melted 2 | . . . . . . . . . . . . . . . . 1 . . . . . 1 . . . Intel | -11 -10 -10 -9 -9 -9 -8 -8 -8 -8 -8 -7 -7 -7 -7 -6 -6 -6 -6 -6 -5 -5 -5 -5 -5 -5 ------- Run | Jun Mat Min Mat Min Exi Min Mat Gar Mat Sto Fac Low Low Zio Pro Fac Low Low Dat Pro Fac Ext Cet Arc Hub Robot Analysis Total 131 | . . . . . . . . . . . . . . . . . . . 131 . . . . . . Derelict Logs Recovered 11 | . . 2 . 1 . . . . . . . 1 3 1 . . . 2 . 1 . . . . . Drone Launches . | . . . . . . . . . . . . . . . . . . . . . . . . . . Drone Recoveries . | . . . . . . . . . . . . . . . . . . . . . . . . . . Zionite Intel Received 13 | . . . . . . . . . . . . . . . . 6 . . . . 4 3 . . . Branch Access 1 | . . . . . . . . . . . . . . . . 1 . . . . . . . . . Guard Positions 1 | . . . . . . . . . . . . . . . . 1 . . . . . . . . . Component Stockpiles 1 | . . . . . . . . . . . . . . . . . . . . . 1 . . . . Prototype Stockpiles 3 | . . . . . . . . . . . . . . . . 1 . . . . 1 1 . . . Component Schematics 1 | . . . . . . . . . . . . . . . . . . . . . 1 . . . . Prototype Schematics 1 | . . . . . . . . . . . . . . . . . . . . . 1 . . . . Unaware Schematics 1 | . . . . . . . . . . . . . . . . . . . . . . 1 . . . Unaware Analyses 1 | . . . . . . . . . . . . . . . . 1 . . . . . . . . . Active Terminals 1 | . . . . . . . . . . . . . . . . 1 . . . . . . . . . Depthwide Sectors/0 1 | . . . . . . . . . . . . . . . . . . . . . . 1 . . . Depthwide Sectors/-1 1 | . . . . . . . . . . . . . . . . 1 . . . . . . . . . Exploration | -11 -10 -10 -9 -9 -9 -8 -8 -8 -8 -8 -7 -7 -7 -7 -6 -6 -6 -6 -6 -5 -5 -5 -5 -5 -5 ------------- Run | Jun Mat Min Mat Min Exi Min Mat Gar Mat Sto Fac Low Low Zio Pro Fac Low Low Dat Pro Fac Ext Cet Arc Hub Turns Passed 35201 | . 405 1261 941 1333 2649 81 1949 1256 337 2686 4092 1070 2077 1929 936 1164 1458 2157 828 3083 348 1263 526 942 430 Spaces Moved 16235 | 1 233 634 324 556 968 33 625 415 82 815 1555 372 907 1232 330 687 1062 1032 305 1135 952 1388 253 158 181 Core 31 | . . . . . . . . . . . . . . . . . . . . 31 . . . . . Treads 7196 | . 65 634 324 556 968 33 625 415 82 815 850 351 528 . . . . 161 235 . . . 215 158 181 Legs 1279 | 1 168 . . . . . . . . . . . . . . . . . 70 1040 . . . . . Wheels 5287 | . . . . . . . . . . . 705 21 379 1232 330 687 1062 871 . . . . . . . Hover . | . . . . . . . . . . . . . . . . . . . . . . . . . . Flight 2442 | . . . . . . . . . . . . . . . . . . . . 64 952 1388 38 . . Fastest Speed 20 | 120 120 160 160 230 230 240 240 242 245 158 158 205 155 155 155 132 132 132 190 25 21 20 20 160 160 Average Speed 173 | 120 149 160 222 230 232 240 240 244 245 239 216 238 205 155 155 146 132 181 237 238 22 28 142 160 160 Slowest Speed 2700 | 120 240 160 240 230 240 240 242 245 245 245 245 240 240 155 155 155 132 300 405 2700 88 91 160 160 160 Overloaded Moves . | . . . . . . . . . . . . . . . . . . . . . . . . . . Propulsion Burnouts . | . . . . . . . . . . . . . . . . . . . . . . . . . . Robots Hopped 21 | . . . . . . . . . . 3 . . . . . . . . . . 2 16 . . . Cave-ins Triggered 1 | . . . . . . . . . . . . . . . . 1 . . . . . . . . . Time Travels 1 | . . . . . 1 . . . . . . . . . . . . . . . . . . . . Exploration Rate (%) 61 | 2 33 94 30 97 88 18 75 65 9 94 43 61 93 90 46 17 96 94 77 94 23 84 68 93 27 Regions Visited 25 Branch Regions 17 Pre-discovered Areas 43 | . . . . . 1 . . . . . . 1 . 2 . 9 . 1 18 2 . 9 . . . Known Exits Taken 12 | . . . 1 . . . 1 . 1 . 1 1 1 . . 1 . . . 1 1 1 1 1 . Unknown Exits Taken 12 | 1 1 1 . 1 1 1 . . . 1 . . . 1 1 . 1 1 1 . . . . . . Scrap Searched 19 | . . 1 . . . 1 . . . . . 3 3 2 . . 2 5 . 2 . . . . . Spaces Dug 99 | . . . . . . . . . . 13 42 14 5 . 4 11 . 1 . . 8 . . . 1 Terrain Destroyed 813 | . . . 13 . 28 . 7 . . 15 187 20 25 . 6 16 2 10 . 142 29 135 42 42 94 Melee 9 | . . . . . . . . . . . . . . . . . . . . . 8 . . . 1 Projectile 179 | . . . . . . . . . . 2 54 20 25 . 6 16 2 9 . 16 1 2 9 3 14 AOE 624 | . . . 13 . 28 . 7 . . 13 133 . . . . . . . . 126 20 133 33 39 79 Terrain Rammed . | . . . . . . . . . . . . . . . . . . . . . . . . . . Walls Destroyed . | . . . . . . . . . . . . . . . . . . . . . . . . . . Machines Disabled . | . . . . . . . . . . . . . . . . . . . . . . . . . . Actions | -11 -10 -10 -9 -9 -9 -8 -8 -8 -8 -8 -7 -7 -7 -7 -6 -6 -6 -6 -6 -5 -5 -5 -5 -5 -5 --------- Run | Jun Mat Min Mat Min Exi Min Mat Gar Mat Sto Fac Low Low Zio Pro Fac Low Low Dat Pro Fac Ext Cet Arc Hub Total 21512 | . 272 838 468 592 1198 36 899 540 171 1277 2036 510 1028 1252 748 807 1114 1238 399 1374 1059 2217 368 825 246 Wait 3095 | . . 165 30 . 44 . 114 11 49 214 213 68 30 3 409 53 37 107 62 85 63 644 42 649 3 Move 16173 | . 232 633 323 555 967 32 625 414 81 808 1554 371 906 1231 329 685 1061 1031 304 1134 947 1360 252 157 181 Hop 16 | . . . . . . . . . . 3 . . . . . . . . . . 2 11 . . . Pick Up 183 | . 10 4 20 10 23 1 9 3 1 12 21 3 7 4 1 14 3 4 4 11 5 5 4 . 4 Fast Attach 174 | . 5 1 14 . 9 1 15 3 3 26 31 1 4 2 1 6 2 8 7 7 2 7 13 2 4 Attach 111 | . . 1 3 1 11 . 1 3 . 7 9 2 7 2 . 4 . 3 2 23 13 10 5 2 2 Detach 46 | . . . . . 4 . 1 2 1 2 5 . 1 2 . . . 1 1 4 9 11 2 . . Swap 120 | . 5 2 11 1 8 . 7 5 2 16 14 6 1 2 3 5 2 10 2 4 2 3 3 3 3 Drop 266 | . 10 6 23 11 27 2 20 6 2 32 38 3 1 5 2 18 5 10 9 11 3 8 9 1 4 Fire 1051 | . 10 25 43 11 99 . 103 93 32 155 130 25 54 . 3 20 3 47 7 84 3 17 38 11 38 Melee 30 | . . . . . . . . . . . . . . 1 . . . . 1 11 10 2 . . 5 Ram 4 | . . . . . . . . . . . 2 . . . . 1 1 . . . . . . . . Kick . | . . . . . . . . . . . . . . . . . . . . . . . . . . Crush 15 | . . 1 1 3 1 . 4 . . 2 3 . . . . . . . . . . . . . . Escape Stasis 53 | . . . . . . . . . . . 16 . . . . 1 . . . . . 36 . . . Rewire 168 | . . . . . . . . . . . . 31 17 . . . . 17 . . . 103 . . . Trap 7 | . . . . . 5 . . . . . . . . . . . . . . . . . . . 2 Miscellaneous . | . . . . . . . . . . . . . . . . . . . . . . . . . . Route ------- -11/Junkyard -10/Materials (discovered 2 exits: *Mat / [*Min]) -10/Mines (discovered 2 exits: *Mat x2) -9/Materials -9/Mines (discovered 4 exits: *Mat x2 / *Exi / *Zio) -9/Exiles -8/Mines -8/Materials (discovered 5 exits: *Fac x2 / *Sto x2 / Gar) -8/Garrison (discovered 2 exits: *Mat x2) -8/Materials (discovered 2 exits: *Sto x2) -8/Storage -7/Factory (discovered 2 exits: *Low x2) -7/Lower Caves -7/Lower Caves -7/Zion -6/Proximity Caves -6/Factory (discovered 2 exits: *Low x2) -6/Lower Caves -6/Lower Caves (discovered 2 exits: *Fac / *Dat) -6/Data Miner -5/Proximity Caves -5/Factory -5/Extension (discovered 3 exits: *Fac x2 / *Cet) -5/Cetus (discovered 2 exits: *Fac / *Arc) -5/Archives (discovered 2 exits: *Fac / *Hub) -5/Hub_04(d) History --------- Turn | Location | Event 1 | -11/Junkyard | Discovered new exit (range 0) 1 | -11/Junkyard | Entered Materials 168 | -10/Materials | Discovered new exit (range 12) 320 | -10/Materials | Build established: Mutant 380 | -10/Materials | Discovered new exit (range 16) 406 | -10/Materials | Entered Mines 407 | -10/Mines | Assembled infested the area 804 | -10/Mines | Discovered new exit (range 15) 1173 | -10/Mines | Learned Materials non-interactive machine intel 1651 | -10/Mines | Discovered new exit (range 11) 1667 | -10/Mines | Entered Materials 1667 | -9/Materials | Evolved 2 slots: Propulsion x1, Utility x1 1668 | -9/Materials | Loaded intel: 28 non-interactive machine locations 1793 | -9/Materials | Identified exit to Mines 2608 | -9/Materials | Entered Mines 2612 | -9/Mines | A Derelict revealed a hidden shortcut to a safe place 2755 | -9/Mines | Found a damaged Exp. Sensor Array with a note attached 2760 | -9/Mines | Found Prototype Device 3067 | -9/Mines | Discovered new exit (range 6) 3322 | -9/Mines | A weapon hastily lodged in a ceiling crevice suddenly fell to the ground 3388 | -9/Mines | Deemed a non-threat by the Exiles lab entrance 3440 | -9/Mines | Learned Materials stockpile data 3461 | -9/Mines | Found a hidden stash of uninstalled traps 3532 | -9/Mines | Discovered new exit (range 14) 3622 | -9/Mines | Received a Rocket Launcher from a helpful Derelict 3932 | -9/Mines | Discovered new exit (range 5) 3941 | -9/Mines | Entered Exiles 4004 | -9/Exiles | Met 8R-AWN 4033 | -9/Exiles | Met EX-HEX 4125 | -9/Exiles | Met EX-DEC 4139 | -9/Exiles | Learned location of Zion (-7) 4276 | -9/Exiles | Discovered new exit (range 14) 4897 | -9/Exiles | Met EX-BIN 4930 | -9/Exiles | Aligned with FarCom system 4932 | -9/Exiles | Given EX-Vault access code 4992 | -9/Exiles | Opened EX-Vault 5042 | -9/Exiles | Warned to stay clear of 0b10 Research branches 5151 | -9/Exiles | Attacked by the Exiles 5358 | -9/Exiles | Lost 5 parts (1p1n3u) 5379 | -9/Exiles | Destroyed 8R-AWN 5385 | -9/Exiles | Found Prototype Protection 5388 | -9/Exiles | Found Prototype Processor 5411 | -9/Exiles | Found Corrupted Prototype Ballistic Gun 5416 | -9/Exiles | Found Prototype Ballistic Gun 5438 | -9/Exiles | Identified Exp. Sensor Array 5649 | -9/Exiles | Core integrity fell below 50% 5686 | -9/Exiles | Identified 8R-AWN's Boregun (x2) 5733 | -9/Exiles | Destroyed EX-DEC 5748 | -9/Exiles | Destroyed EX-HEX 5797 | -9/Exiles | Destroyed EX-BIN 5828 | -9/Exiles | Found Prototype Device 5828 | -9/Exiles | Identified System Purifier 5858 | -9/Exiles | Found Prototype Processor 5863 | -9/Exiles | Found Prototype Energy Gun 6295 | -9/Exiles | Found Prototype Device 6538 | -9/Exiles | Identified Chronowheel 6538 | -9/Exiles | Activated Chronowheel 6538 | -9/Exiles | Spacetime reconverged on an earlier point 6590 | -9/Exiles | Entered Mines 6626 | -8/Mines | Discovered new exit (range 16) 6671 | -8/Mines | Entered Materials 6671 | -8/Materials | Evolved 2 slots: Propulsion x1, Utility x1 6672 | -8/Materials | Identified exit to Storage 6926 | -8/Materials | Discovered exit to Storage (range 14) 7399 | -8/Materials | Repaired Hvy. Armor Plating 7438 | -8/Materials | Repaired Flak Cannon 7471 | -8/Materials | Repaired Imp. Treads 7585 | -8/Materials | Destroyed 9 combat bots 7803 | -8/Materials | Discovered new exit (range 15) 8368 | -8/Materials | Discovered new exit (range 14) 8465 | -8/Materials | Garrison activated, responded to threat 8620 | -8/Materials | Identified exit to Garrison 8620 | -8/Materials | Entered Garrison 8638 | -8/Garrison | Triggered checkpoint 8799 | -8/Garrison | Destroyed 7 combat bots 8814 | -8/Garrison | Triggered checkpoint 8822 | -8/Garrison | Garrison Relay disabled 9365 | -8/Garrison | Garrison Relay disabled 9424 | -8/Garrison | Discovered new exit (range 11) 9588 | -8/Garrison | Triggered checkpoint 9759 | -8/Garrison | Discovered new exit (range 12) 9764 | -8/Garrison | Triggered checkpoint 9827 | -8/Garrison | Garrison Relay disabled 9876 | -8/Garrison | Entered Materials 9931 | -8/Materials | Repaired Hvy. Armor Plating 10213 | -8/Materials | Entered Storage 11391 | -8/Storage | Discovered new exit (range 15) 11693 | -8/Storage | Core integrity fell below 50% 11831 | -8/Storage | Assisted by bots powering up and referring to "LRC-V3" 11864 | -8/Storage | Met 01-MTF 11967 | -8/Storage | Garrison activated, responded to threat 12131 | -8/Storage | Build established: Commander-Mutant 12196 | -8/Storage | Repaired Arm. Medium Treads 12253 | -8/Storage | Repaired Rnf. Fission Core? 12684 | -8/Storage | Destroyed 01-MTF 12697 | -8/Storage | Found Prototype Device 12697 | -8/Storage | Identified 01-MTF's Autohacker 12715 | -8/Storage | Found 01-MTF's Shockpuncher 12802 | -8/Storage | Identified 8R-AWN's Armor/EX 12806 | -8/Storage | Identified Exp. Targeting Computer 12824 | -8/Storage | Identified Exp. Core Analyzer 12899 | -8/Storage | Entered Factory 12899 | -7/Factory | Accompanied by 4 allies 12899 | -7/Factory | Evolved 2 slots: Utility x2 13376 | -7/Factory | Build established: Mutant 13920 | -7/Factory | Cargo convoy interrupted 13954 | -7/Factory | Destroyed 9 combat bots 13964 | -7/Factory | Lost 4 parts (2n2u) 13995 | -7/Factory | System corruption reached 10% 13997 | -7/Factory | Found Prototype Processor 13997 | -7/Factory | Identified Exp. Melee Analysis Suite 14000 | -7/Factory | Found Prototype Launcher 14000 | -7/Factory | Identified Scatter Rocket Array 14023 | -7/Factory | Found Prototype Device 14023 | -7/Factory | Identified Exp. ECM Suite 14083 | -7/Factory | Found Prototype Launcher 14083 | -7/Factory | Identified Com. Tesla Bomb Launcher 14425 | -7/Factory | Build established: Hauler-Mutant 14899 | -7/Factory | First assault squad dispatched 15160 | -7/Factory | Destroyed 9 combat bots 15541 | -7/Factory | Repaired Reactive Plating 15628 | -7/Factory | Repaired Imp. Heavy Treads 15685 | -7/Factory | Repaired Adv. Shield Generator? 16699 | -7/Factory | Identified exit to Lower Caves 16991 | -7/Factory | Entered Lower Caves 17030 | -7/Lower Caves | Met a Warlord Commander 17031 | -7/Lower Caves | Learned location of Warlord (-5) 17113 | -7/Lower Caves | Encountered a Warlord checkpoint 17214 | -7/Lower Caves | Identified exit to Lower Caves 17449 | -7/Lower Caves | Spotted B-75 Beast 17485 | -7/Lower Caves | Destroyed B-75 Beast 17765 | -7/Lower Caves | Attracted the attention of an 0b10 outpost 18061 | -7/Lower Caves | Entered another Lower Caves area 18061 | -7/Lower Caves | Accompanied by 2 allies 18076 | -7/Lower Caves | Learned Factory trap positions 18192 | -7/Lower Caves | Attracted the attention of an 0b10 outpost 18614 | -7/Lower Caves | Build established: Scavenger-Mutant 18704 | -7/Lower Caves | Identified exit to Zion 19413 | -7/Lower Caves | Spotted B-75 Beast 19459 | -7/Lower Caves | Core integrity fell below 50% 19484 | -7/Lower Caves | Destroyed B-75 Beast 19511 | -7/Lower Caves | Lost 7 parts (1p2n2u2w) 19526 | -7/Lower Caves | Encountered a Warlord checkpoint 19604 | -7/Lower Caves | Learned Factory terminal intel 19724 | -7/Lower Caves | Build established: Hauler-Mutant 20138 | -7/Lower Caves | Entered Zion 20192 | -7/Zion | System corruption cleaned by Quarantine Array 20378 | -7/Zion | Discovered new exit (range 10) 20503 | -7/Zion | Learned location of Extension (-5) 20594 | -7/Zion | Given A8's code to call for help 20682 | -7/Zion | Remotely autohacked Sealed Blast Doors 20686 | -7/Zion | Remotely autohacked Sealed Blast Doors 20686 | -7/Zion | Remotely autohacked Sealed Blast Doors 20686 | -7/Zion | Remotely autohacked Sealed Blast Doors 20989 | -7/Zion | Found CR-A16's Pointy Stick 21034 | -7/Zion | Found Prototype Special Weapon 21034 | -7/Zion | Identified RU-N14's Throwing Claymores 21053 | -7/Zion | Found RU-N14's Throwing Claymores 21056 | -7/Zion | Found RU-N14's Throwing Claymores 21177 | -7/Zion | Acquired unknown access codes intercepted by a Zionite 21278 | -7/Zion | Given the Hacking Drone Bay 21354 | -7/Zion | Learned Factory emergency access door positions 21618 | -7/Zion | Imprinted 21621 | -7/Zion | Declared Zion's savior 21766 | -7/Zion | Enhanced Grunt warped into view, answering call for help 21772 | -7/Zion | Enhanced Grunt warped into view, answering call for help 22067 | -7/Zion | Entered Proximity Caves 22067 | -6/Proximity Caves | Accompanied by 6 allies 22167 | -6/Proximity Caves | Spotter reported a threat 22304 | -6/Proximity Caves | Spotter reported a threat 22843 | -6/Proximity Caves | Discovered new exit (range 6) 23003 | -6/Proximity Caves | Entered Factory 23003 | -6/Factory | Accompanied by 6 allies 23003 | -6/Factory | Evolved 2 slots: Propulsion x2 23004 | -6/Factory | Loaded intel: 80 trap records 23006 | -6/Factory | Loaded intel: 26 terminal locations 23325 | -6/Factory | Retrieved Zion intel report: Active Terminals 23326 | -6/Factory | Zion Light squad teleported in 23406 | -6/Factory | Retrieved Zion intel report: Prototype Stockpiles 23500 | -6/Factory | Retrieved Zion intel report: Guard Positions 23508 | -6/Factory | Retrieved Zion intel report: Depthwide Sectors/-1 23599 | -6/Factory | Retrieved Zion intel report: Branch Access 23599 | -6/Factory | Identified exit to Lower Caves 23721 | -6/Factory | Retrieved Zion intel report: Unaware Analyses 23722 | -6/Factory | Zion Light squad teleported in 23861 | -6/Factory | Found Prototype Protection 23862 | -6/Factory | Identified Zio. Weapon Casing 23935 | -6/Factory | Crushed by falling debris 24167 | -6/Factory | Entered Lower Caves 24167 | -6/Lower Caves | Accompanied by 3 allies 25409 | -6/Lower Caves | Encountered a Warlord checkpoint 25472 | -6/Lower Caves | Discovered new exit (range 15) 25625 | -6/Lower Caves | Entered another Lower Caves area 25625 | -6/Lower Caves | Accompanied by 2 allies 25630 | -6/Lower Caves | Ambushed by wild Derelicts 25722 | -6/Lower Caves | Discovered new exit (range 7) 26068 | -6/Lower Caves | Encountered a Warlord checkpoint 26346 | -6/Lower Caves | Attracted the attention of an 0b10 checkpoint 26767 | -6/Lower Caves | Attacked by a delusional Derelict stockpiling Unaware 27168 | -6/Lower Caves | Learned Factory terminal intel 27174 | -6/Lower Caves | A Commander dispatched an escort 27176 | -6/Lower Caves | Learned Armory trap positions 27176 | -6/Lower Caves | Learned Factory security intel 27176 | -6/Lower Caves | Learned Extension garrison access intel 27231 | -6/Lower Caves | Discovered new exit (range 20) 27567 | -6/Lower Caves | Attracted the attention of an 0b10 base 27782 | -6/Lower Caves | Entered Data Miner 27782 | -6/Data Miner | Accompanied by 4 allies 27783 | -6/Data Miner | Discovered new exit (range 6) 27882 | -6/Data Miner | Met Data Miner 28115 | -6/Data Miner | Learned location of Section 7 (-3) 28115 | -6/Data Miner | Acquired the access code to Warlord's prototype stash 28156 | -6/Data Miner | Received God Mode back door access code from Data Miner 28336 | -6/Data Miner | Interfaced with the Data Conduit 28402 | -6/Data Miner | Lost 3 parts (2n1u) 28418 | -6/Data Miner | System corruption reached 10% 28465 | -6/Data Miner | System corruption reached 30% 28610 | -6/Data Miner | Entered Proximity Caves 28702 | -5/Proximity Caves | Build established: Scavenger-Mutant 28710 | -5/Proximity Caves | Spotter reported a threat 28744 | -5/Proximity Caves | Spotter reported a threat 29128 | -5/Proximity Caves | Attracted the attention of an 0b10 checkpoint 29141 | -5/Proximity Caves | Spotted B-75 Beast 29337 | -5/Proximity Caves | Lost 4 parts (1p1u2w) 29539 | -5/Proximity Caves | Spotter reported a threat 29544 | -5/Proximity Caves | Discovered new exit (range 12) 29804 | -5/Proximity Caves | Spotter reported a threat 30021 | -5/Proximity Caves | Attracted the attention of an 0b10 base 30095 | -5/Proximity Caves | Learned 6 Lower Caves zone layouts 30099 | -5/Proximity Caves | Destroyed 11 combat bots 30133 | -5/Proximity Caves | Core integrity fell below 50% 30239 | -5/Proximity Caves | Lost 3 parts (1p1n1u) 30573 | -5/Proximity Caves | Core integrity fell below 20% 30615 | -5/Proximity Caves | Destroyed B-75 Beast 30642 | -5/Proximity Caves | Lost 8 parts (1p4n1u2w) 30861 | -5/Proximity Caves | Build established: Hauler-Mutant 31692 | -5/Proximity Caves | Identified exit to Factory 31693 | -5/Proximity Caves | Entered Factory 31693 | -5/Factory | Evolved 2 slots: Power x1, Propulsion x1 31695 | -5/Factory | Loaded intel: 251 machine locations 31696 | -5/Factory | Loaded intel: 28 terminal locations 31787 | -5/Factory | Retrieved Zion intel report: Prototype Stockpiles 31834 | -5/Factory | Retrieved Zion intel report: Prototype Schematics 31845 | -5/Factory | Retrieved Zion intel report: Component Schematics 31846 | -5/Factory | Zion Fire squad teleported in 31862 | -5/Factory | Retrieved Zion intel report: Component Stockpiles 31872 | -5/Factory | Discovered new exit (range 16) 31914 | -5/Factory | Identified exit to Extension 31993 | -5/Factory | Search patrols dispatched 32041 | -5/Factory | Entered Extension 32042 | -5/Extension | Loaded intel: 36 machine locations 32097 | -5/Extension | Zion Hover Resupply teleported in 32104 | -5/Extension | Remotely autohacked Sealed Heavy Doors 32105 | -5/Extension | Rescued a captive Derelict 32106 | -5/Extension | Rescued a captive Derelict 32120 | -5/Extension | Remotely autohacked Sealed Heavy Doors 32121 | -5/Extension | Rescued A7 32173 | -5/Extension | Remotely autohacked Sealed Heavy Doors 32175 | -5/Extension | Rescued a captive Derelict 32271 | -5/Extension | Remotely autohacked Sealed Heavy Doors 32271 | -5/Extension | Rescued a captive Derelict 32273 | -5/Extension | Retrieved Zion intel report: Unaware Schematics 32276 | -5/Extension | Rescued a captive Derelict 32641 | -5/Extension | Spotted B-75 Beast 32643 | -5/Extension | Build established: Commander-Sprinter 32660 | -5/Extension | Allies destroyed B-75 Beast 32660 | -5/Extension | Spotted B-75 Beast 32670 | -5/Extension | Remotely autohacked Sealed Heavy Doors 32670 | -5/Extension | Discovered new exit (range 4) 32671 | -5/Extension | Revealed the true nature of CR-A16's Pointy Stick 32674 | -5/Extension | Destroyed B-75 Beast 32693 | -5/Extension | Remotely autohacked Sealed Heavy Doors 32694 | -5/Extension | Rescued a captive Derelict 32934 | -5/Extension | Remotely autohacked Sealed Heavy Doors 32934 | -5/Extension | Rescued a captive Derelict 32935 | -5/Extension | Rescued a captive Derelict 32941 | -5/Extension | First assault squad dispatched 32956 | -5/Extension | Retrieved Zion intel report: Prototype Stockpiles 32957 | -5/Extension | Zion Heavy squad teleported in 33176 | -5/Extension | Remotely autohacked Sealed Heavy Doors 33177 | -5/Extension | Rescued a captive Derelict 33190 | -5/Extension | Zion Hover Resupply teleported in 33219 | -5/Extension | Retrieved Zion intel report: Depthwide Sectors/0 33229 | -5/Extension | Discovered new exit (range 10) 33229 | -5/Extension | Discovered new exit (range 6) 33231 | -5/Extension | Identified exit to Cetus 33294 | -5/Extension | Identified exit to Factory 33304 | -5/Extension | Entered Cetus 33304 | -5/Cetus | Accompanied by 12 allies (A7) 33305 | -5/Cetus | Loaded intel: 24 machine locations 33309 | -5/Cetus | Acquired a Cetus Manufacturing Module code from A7 33312 | -5/Cetus | Spotted Cetus Guard 33312 | -5/Cetus | Spotted Cetus Guard 33321 | -5/Cetus | Spotted Cetus Guard 33321 | -5/Cetus | Spotted Cetus Guard 33336 | -5/Cetus | Destroyed Cetus Guard 33342 | -5/Cetus | Destroyed Cetus Guard 33362 | -5/Cetus | Destroyed Cetus Guard 33366 | -5/Cetus | Extracted ID and sensor layout for unrecognized location from A7's data core 33393 | -5/Cetus | Lost 8 parts (2p3n2u1w) 33516 | -5/Cetus | Started Cetus Manufacturing Module 33541 | -5/Cetus | Manufactured an Enhanced Grunt 33542 | -5/Cetus | Cetus Manufacturing Module disabled 33601 | -5/Cetus | Discovered new exit (range 16) 33646 | -5/Cetus | Spotted Cetus Guard 33647 | -5/Cetus | Spotted Cetus Guard 33652 | -5/Cetus | Spotted Cetus Guard 33652 | -5/Cetus | Spotted Cetus Guard 33662 | -5/Cetus | Destroyed Cetus Guard 33664 | -5/Cetus | Destroyed Cetus Guard 33666 | -5/Cetus | Destroyed Cetus Guard 33690 | -5/Cetus | Destroyed Cetus Guard 33691 | -5/Cetus | Build established: Scavenger-Mutant 33701 | -5/Cetus | Discovered exit to Factory (range 15) 33713 | -5/Cetus | Scared off Revision 17 33770 | -5/Cetus | System corruption reached 10% 33825 | -5/Cetus | Identified exit to Archives 33830 | -5/Cetus | Entered Archives 33831 | -5/Archives | Loaded intel: 8 machine locations 33995 | -5/Archives | Met Zhirov 34001 | -5/Archives | Reinforcements dispatched to Archives 34003 | -5/Archives | Unable to access archive contents 34038 | -5/Archives | Read partially decrypted archive contents 34046 | -5/Archives | Reinforcements dispatched to Archives 34048 | -5/Archives | Zhirov warped through subspace 34052 | -5/Archives | Discovered new exit (range 13) 34066 | -5/Archives | Zhirov detonated Archives 34070 | -5/Archives | Identified exit to Hub_04(d) 34137 | -5/Archives | Discovered exit to Factory (range 16) 34772 | -5/Archives | Entered Hub_04(d) 34773 | -5/Hub_04(d) | Loaded intel: 92 machine locations 34972 | -5/Hub_04(d) | Zion Demo squad teleported in 35029 | -5/Hub_04(d) | Zion Trap Resupply teleported in 35135 | -5/Hub_04(d) | Network Hub disabled 35151 | -5/Hub_04(d) | Spotted Lightning 35154 | -5/Hub_04(d) | Spotted Lightning 35156 | -5/Hub_04(d) | Spotted Lightning 35161 | -5/Hub_04(d) | Core integrity fell below 50% 35171 | -5/Hub_04(d) | Garrison activated, responded to threat 35174 | -5/Hub_04(d) | Destroyed Lightning 35174 | -5/Hub_04(d) | Destroyed Lightning 35183 | -5/Hub_04(d) | Spotted Lightning 35188 | -5/Hub_04(d) | Destroyed Lightning 35188 | -5/Hub_04(d) | Spotted Lightning 35189 | -5/Hub_04(d) | Spotted Lightning 35202 | -5/Hub_04(d) | Self-destructed Last Messages --------------- 35193_ Penetrated by EMDS Slug. 35195_ The unstable cave ceiling collapses. 35195_ Imp. Medium Armor Plating destroyed. 35195_ Destroyed Imp. Medium Armor Plating. 35195_ Rocket intercepted. 35195_ ALERT: Hostile activity reported, dispatching reinforcements to area. 35196_ Penetrated by EMDS Slug. 35198_ Rocket intercepted. 35198_ Scatter Rocket Array destroyed. 35198_ Destroyed Scatter Rocket Array. 35198_ Rocket intercepted. 35198_ Terminal disabled. 35199_ EMDS Slug penetrates Terminal. 35200_ The unstable cave ceiling collapses. 35200_ Centrium Medium Armor Plating destroyed. 35201_ Penetrated by EMDS Slug. 35201_ CR-A16's Behemoth Slayer destroyed. 35201_ Penetrated by EMDS Slug. 35201_ Centrium Medium Armor Plating destroyed. Map ----- +----------------------------------------------------+ | ????#%=%# "" "" # #????? #&&#?# # | | ????# !=##+###############+#########+##&&### + | | ????# */# + =% !%[ &&&!& & # | | ????# # ###### = &&&&& # | | ##### # != " #????#" ### "##########+##### | | #%== * " #?? " " " " ??? ???# | | + =** " # " " " " #?"""" ???#### | | # # """"""""""""" # """" ?????? | | # ###### # " " # """" ?????? | | # #????# """T""" # " " #?"""" ????? | | # #????########### " " #?? ????? | | # #???????????####" ; " #????? ???? | | # #??????????? " ; " #????? ???? | | # ##?????????? " ; = k ; ###???#####??? | | # ##???"""?"" " ; %% !; #??????????? | | # ##????????? ; ; ! ; #???????????? | | ! ##??"""?""" ; " ! ; #????????????? | | ! ### ???# " Y ; ;#????????????? | | [== + """ """????# ;;; ; ;;;;; #?????????????? | | = ### ???# ; #?"???????????? | | # ###??""" ?# ;;####?""??????????? | | # # #?????? # # # ; #?G???????????? | | + ###??""" """ ; #?""??????????? | | # #?????? i "" ; #?"???????????? | | # #?????? h [ #?????????????? | | # ?????? h @ #?????????????? | | # ??????k h % ; #?????????????? | | ####?????? ; #?????????????? | | ??????????? # ;;#/###?????????????? | | ??????????? ????"""???????? | | ????????????g ] #??""T""??????? | | ???????????? " " """ #??""?""??????? | | ?"""?"""???? #?????????????? | | ?????????????H """ != """ #?????????????? | | ?????"?"????? # [uu #?????????????? | | ?????"T"??????### ?### [[! ###???????????????? | | ?????"""????????#????# #!?????????????????? | | ?????????????????????########## ??""""?""""??????? | | ?????????????????????? ??????? ?""""?""""??????? | | ??????????????????????? ??????????""""?""""??????? | | ??????????????????????????????????""""?""""??????? | | ?????????????????????????????????????????????????? | | ?????????????????????????????????????????????????? | | ??""""?""""??????????????????????????????????????? | | ??""""?""""??????????????????????????????????????? | | ??""""?""""???????????????????????????????"""????? | | ??""""?""""??????????????????????????????????????? | | ?????????????????????????????????????????????????? | | ??????????????????????????????????????????"""????? | | ?????????????????????????????????""""????????????? | +----------------------------------------------------+ Best States ------------- Heat Dissipation 79 Energy Generation 38 Energy Capacity 500 Matter Stores 300 Matter Capacity 300 Sight Range 16 Robot Scan Range 20 Terrain Scan Range 20 Terrain Scan Density 210 ECM Strength 3 Cloak Strength 2 Armor Coverage 1200 Resistance: KI 20 Resistance: TH 10 Resistance: EX 90 Utility Shielding 66 Weapon Cycling 25 Evasion (%) 66 Targeting Accuracy 12 Melee Accuracy 12 Core Analysis 8 Recoil Reduction 7 Salvage Targeting 1 Offensive Hacking 10 Authchip Count 1 Item Schematics ----------------- Imp. Field Recycling Unit | -7/Zion | Archive Hvy. Flak Cannon | -7/Zion | Archive Imp. Cooling System | -7/Zion | Archive Matter Compressor | -7/Zion | Archive Mak. Hacking Suite | -7/Zion | Archive Imp. Core Shielding | -7/Zion | Archive Gravmag System | -7/Zion | Archive Hvy. Shock Bomb Launcher | -7/Zion | Archive Hvy. Beamcaster | -7/Zion | Archive Imp. Melee Analysis Suite | -7/Zion | Archive Adv. Heat Sink | -7/Zion | Archive System Restoration Module | -7/Zion | Archive Remote Shield | -7/Zion | Archive Imp. Trap Scanner | -7/Zion | Archive Hvy. Laser | -7/Zion | Archive Combat Drone Bay | -6/Data Miner | Free Lgt. Regenerative Plating | -6/Data Miner | Free Cld. Nuclear Pulse Thruster | -6/Data Miner | Free Prc. Matter Filter | -6/Data Miner | Free Neutron Cannon | -6/Data Miner | Free Adv. Medium Treads | -6/Data Miner | Free Imp. Phase Shifter | -6/Data Miner | Free Hyp. Mass Driver | -6/Data Miner | Free Imp. Spread Laser | -5/Factory | Z-intel Hvy. Gatling Laser | -5/Factory | Z-intel Mni. Smartbomb Launcher | -5/Factory | Z-intel Cld. Gravmag System | -5/Factory | Z-intel Enh. Force Rifle | -5/Factory | Z-intel Exp. Targeting Computer | -5/Factory | Z-intel Force Rifle | -5/Factory | Z-intel Enh. Nuclear Core | -5/Factory | Z-intel Imp. Energy Well | -5/Factory | Z-intel Hvy. Proton Cannon | -5/Factory | Z-intel Scatter Rocket Array | -5/Factory | Z-intel Plasma Sword | -5/Factory | Z-intel Flail | -5/Factory | Z-intel Imp. System Restoration Module | -5/Factory | Z-intel Com. Matter Pod | -5/Factory | Z-intel Adv. Hacking Suite | -5/Factory | Z-intel Lyr. Heavy Armor Plating | -5/Factory | Z-intel Imp. Medium Treads | -5/Factory | Z-intel Hardlight Generator | -5/Factory | Z-intel Energy Well | -5/Factory | Z-intel Med. Storage Unit | -5/Factory | Z-intel Imp. Launcher Guidance Computer | -5/Factory | Z-intel Imp. Propulsion Shielding | -5/Factory | Z-intel Focal Shield | -5/Factory | Z-intel Wheel | -5/Factory | Z-intel Particle Charger | -5/Factory | Z-intel Lrn. Tractor Beam | -5/Factory | Z-intel Hvy. Plasma Cannon | -5/Factory | Z-intel Robot Schematics ------------------ B-36 Bruiser | -7/Zion | Archive W-25 Informer | -7/Zion | Archive R-06 Scavenger | -7/Zion | Archive C-57 Dissector | -7/Zion | Archive Y-64 Sentinel | -6/Data Miner | Free A-15 Conveyor | -6/Data Miner | Free S-27 Virus | -6/Data Miner | Free E-15 Imp | -6/Data Miner | Free A-02 Transporter | -5/Extension | Z-intel K-01 Serf | -5/Extension | Z-intel H-66 Slayer | -5/Extension | Z-intel T-07 Excavator | -5/Extension | Z-intel Fabricated ------------ Nothing Alien Tech Used ----------------- None Achievements -------------- None Challenges ------------ None Game ------ Seed ShadingBladeTerrabomb Manual? 0 Play Time 03:30:06 Cumulative 322.2 hours Start 2023.04.23 @ 20:07:16 End 2023.04.25 @ 20:05:35 Sessions 11 Manual Loads 0 Difficulty Rogue Special Mode None Game No. 345 Rogue 345 Adventurer 0 Explorer 0 Win Type - Total 27 Types 16/3/2/1/2/0/3/0/0 Lore% 85 Gallery% 84 Achievement% 82 Wizard Run 0 Options --------- ASCII 0 Keyboard 0 Movement Arrows Keybinds 0 Fullscreen 2 Font 24/Smallcaps Map View 76x50 Tactical HUD 1 Map Filters NONE Filters NONE Steam 1 RUN: b0f12aa7-e36f-41ba-9816-7fa74b1b896b